Cogmind - Beta 14 @@@ ROGUE MODE // 2024.08.29 @ 10:55:37 Player: BadFPS Result: Destroyed by D-53 Grenadier with Mini Grenade Launcher Performance ------------- Evolutions (0) 0 Regions Visited (2) 400 Robots Destroyed (17) 85 Value Destroyed (376) 376 Prototype IDs (0) 0 Alien Tech Used (0) 0 Bonus (0) 0 TOTAL SCORE: 861 Bonus ------- None Cogmind --------- Core Integrity 0/250 Matter 289/300 Energy 98/100 System Corruption 0% Temperature Cool (0) Movement Core (50) Location -10/Mines Parts ------- > --- POWER (1) -------- (None) > --- PROPULSION (2) --- (None) > --- UTILITY (2) ------ Hacking Suite > --- WEAPON (2) ------- (None) > --- INVENTORY (5) ---- Heat Sink Improved Heat Sink Seismic Detector Grenade Launcher Mining Laser Peak State ------------ > --- POWER ------------ Ion Engine > --- PROPULSION ------- Light Treads Light Treads > --- UTILITY ---------- Medium Storage Unit Hacking Suite > --- WEAPON ----------- Particle Gun Light Assault Rifle > --- INVENTORY -------- Light Ion Engine Aluminum Leg Aluminum Leg Heat Sink Improved Heat Sink Seismic Detector Grenade Launcher Mining Laser [Rating: 11] Favorites ----------- Power Ion Engine Engine Ion Engine Propulsion Light Treads Treads Light Treads Leg Aluminum Leg Utility Medium Storage Unit Device Seismic Detector Storage Medium Storage Unit Hackware Hacking Suite Weapon Assault Rifle Energy Gun Medium Laser Ballistic Gun Assault Rifle Launcher Grenade Launcher Build | -11 -10 -10 ------- Run | Yrd Mat Min Slots Evolved . | . . . Power . | . . . Propulsion . | . . . Utility . | . . . Weapon . | . . . Parts Attached 17 | 8 6 3 Power 3 | 2 1 . Engine 3 | 2 1 . Core . | . . . Reactor . | . . . Propulsion 5 | 2 . 3 Treads 3 | 2 . 1 Leg 2 | . . 2 Wheel . | . . . Hover . | . . . Flight . | . . . Utility 4 | 2 2 . Device 1 | 1 . . Storage 2 | 1 1 . Processor . | . . . Hackware 1 | . 1 . Protection . | . . . Artifact . | . . . Weapon 5 | 2 3 . Energy Gun 2 | 1 1 . Energy Cannon . | . . . Ballistic Gun 2 | 1 1 . Ballistic Cannon . | . . . Launcher 1 | . 1 . Special Weapon . | . . . Impact Weapon . | . . . Slashing Weapon . | . . . Piercing Weapon . | . . . Special Melee Weapon . | . . . Unidentified Prototypes . | . . . Parts Lost 8 | . 2 6 Power 1 | . . 1 Propulsion 3 | . . 3 Utility . | . . . Weapon 4 | . 2 2 Highest Loss Streak 6 | . 2 6 To Critical Strikes . | . . . Average Slot Usage (%) 95 | . 99 77 Engine 13 | . 14 9 Treads 26 | . 28 18 Device 5 | . 6 . Storage 13 | . 14 11 Hackware 8 | . 7 14 Energy Gun 13 | . 13 11 Ballistic Gun 13 | . 14 11 Peak Build Rating 11 | 7 11 11 Average Rating 8 | 5 8 9 On Entrance 6 | . 7 11 Naked Turns . | . . . Heaviest Build 20 | 15 20 19 Greatest Support 40 | 40 40 40 Greatest Overweight (x) 3 | 3 . . Average Overweight (x) . | . . . Largest Inventory Capacity 10 | 8 10 10 Average Capacity 9 | 7 9 9 Most Carried 10 | 5 9 10 Average Carried 6 | 2 7 7 Final Capacity 10 | 8 10 5 Final Carried 8 | 5 8 5 Class Distribution -------------------- 100% | Mutant Dominant Class ---------------- Mutant | -10/Materials Mutant | -10/Mines Resources | -11 -10 -10 ----------- Run | Yrd Mat Min Matter Collected 467 | 301 166 . Remotely . | . . . Salvage Created 576 | 128 448 . Parts 37 | 6 31 . Haulers Intercepted . | . . . Recyclers Shooed 1 | . 1 . Parts Field Recycled . | . . . Retrieved Matter . | . . . Parts Self-Destructed . | . . . Prevented . | . . . Kills | -11 -10 -10 ------- Run | Yrd Mat Min Combat Hostiles Destroyed 8 | . 8 . Guns 6 | . 6 . AOE 2 | . 2 . Classes Destroyed 7 | 2 5 . Worker 3 | . 3 . Tunneler 2 | 2 . . Recycler 1 | 1 . . Mechanic 1 | . 1 . Operator 1 | . 1 . Watcher 1 | . 1 . Grunt 8 | . 8 . Best Kill Streak 5 | 3 5 . Combat Bots Only 2 | . 2 . Max Kills in Single Turn 2 | 1 2 . Gunslinging . | . . . Exploded 2 | . 2 . Melee . | . . . Uniques/NPCs Destroyed . | . . . Combat | -11 -10 -10 -------- Run | Yrd Mat Min Hostile Shots Fired 82 | . 66 16 Missed 23 | . 22 1 Damage Taken 1179 | . 526 653 Core 275 | . 57 218 Absorbed by Shields . | . . . Core Remaining (%) 100 | 100 . . Volleys Fired 50 | 7 43 . Largest 2 | 2 2 . Hottest 85 | 70 85 . Shots Fired 93 | 14 79 . Gun 91 | 14 77 . Cannon . | . . . Launcher 2 | . 2 . Special . | . . . Kinetic 50 | 7 43 . Thermal 41 | 7 34 . Explosive 2 | . 2 . Electromagnetic . | . . . Robot Hit Streak 8 | 7 8 . Robot Miss Streak 4 | 1 4 . Penetration Max . | . . . Secondary Targets 1 | . 1 . Max Gunslinging Chain 1 | . 1 . Shots Hit Robots 58 | 10 48 . Core Hits 28 | 4 24 . Critical Kills . | . . . Critical Parts Destroyed 2 | 1 1 . Critical Strikes 6 | 1 5 . Burn 4 | . 4 . Destroy 2 | 1 1 . Melee Attacks . | . . . Impact . | . . . Slashing . | . . . Piercing . | . . . Sneak Attacks . | . . . Combat Hostiles . | . . . Follow-up Attacks . | . . . Damage Inflicted 905 | 119 786 . Guns 755 | 119 636 . Cannons . | . . . Explosions 150 | . 150 . Melee . | . . . Ramming . | . . . Kinetic 422 | 56 366 . Thermal 333 | 63 270 . Explosive 150 | . 150 . Electromagnetic . | . . . Impact . | . . . Slashing . | . . . Piercing . | . . . Highest Corruption . | . . . Average Corruption . | . . . Corruption Purged . | . . . Corruption Blocked . | . . . Overload Shots . | . . . Overflow Damage . | . . . Projectiles . | . . . Explosions . | . . . Melee . | . . . Knockbacks . | . . . Impact . | . . . Kinetic . | . . . Secondary . | . . . Self-Inflicted Damage . | . . . Shots . | . . . Rammed . | . . . Targets Rammed . | . . . Kicked . | . . . Crushed . | . . . Highest Temperature 250 | 36 250 . Average Temperature 71 | 15 80 . Received Heat Transfer 294 | . 294 . Siege Activations . | . . . Robots Corrupted . | . . . Combat Hostiles . | . . . Parts Fried . | . . . Impact Corruptions . | . . . Robots Melted . | . . . Combat Hostiles . | . . . Parts Melted . | . . . Heat Transferred 1221 | 185 1036 . Parts Sabotaged . | . . . Parts Stolen . | . . . Parts Stripped . | . . . Power Chain Reactions . | . . . Alert | -11 -10 -10 ------- Run | Yrd Mat Min Peak Influence 273 | 15 273 34 Initial 34 | . 9 34 Average 59 | 4 78 26 Maximum Alert Level 1 | . 1 . Low Security (%) 93 | 100 91 100 Level 1 6 | . 8 . Level 2 . | . . . Level 3 . | . . . Level 4 . | . . . Level 5 . | . . . High Security . | . . . Max Security . | . . . Squads Dispatched 2 | . 2 . Investigation 1 | . 1 . Extermination . | . . . Reinforcement 1 | . 1 . Assault . | . . . Garrison . | . . . Intercept . | . . . Searches Triggered . | . . . Construction Impeded . | . . . Haulers Reinforced . | . . . Active Scanning Responses . | . . . Cargo Convoy Interrupts . | . . . Stealth | -11 -10 -10 --------- Run | Yrd Mat Min Distress Signals 1 | . 1 . Communications Jammed . | . . . Distress Signals . | . . . Times Spotted 18 | . 14 4 Peak Tracking Total 7 | . 3 7 Tactical Retreats . | . . . Traps | -11 -10 -10 ------- Run | Yrd Mat Min Traps Triggered . | . . . Indirectly . | . . . Trap Hack Attempts . | . . . Triggered . | . . . Disarmed . | . . . Reprogrammed . | . . . Reused . | . . . Traps Extracted . | . . . Installed . | . . . Triggered . | . . . Machines | -11 -10 -10 ---------- Run | Yrd Mat Min Machines Disabled 1 | . 1 . Max in Single Turn 1 | . 1 . Machines Repaired . | . . . Machines Dismantled . | . . . Machines Sabotaged . | . . . Overloaded Fab Kills . | . . . Hacking | -11 -10 -10 --------- Run | Yrd Mat Min Machines Accessed 4 | . 4 . Terminals 4 | . 4 . Fabricators . | . . . Repair Stations . | . . . Recycling Units . | . . . Scanalyzers . | . . . Garrison Access . | . . . Total Hacks 15 | . 15 . Successful 9 | . 9 . Failed 6 | . 6 . Catastrophic 2 | . 2 . Database Lockouts . | . . . Manual 10 | . 10 . Terminals 15 | . 15 . Fabricators . | . . . Repair Stations . | . . . Recycling Units . | . . . Scanalyzers . | . . . Garrison Access . | . . . Terminal Hacks 6 | . 6 . Record 1 | . 1 . Robot Analysis 1 | . 1 . Alert Level 1 | . 1 . Locate Traps 1 | . 1 . Investigation Status 1 | . 1 . Zone Layout 1 | . 1 . Fabricator Hacks . | . . . Repair Station Hacks . | . . . Recycling Unit Hacks . | . . . Scanalyzer . | . . . Garrison Access Hacks . | . . . Unauthorized Hacks 3 | . 3 . Terminals 3 | . 3 . Botnet 3 | . 3 . Fabricators . | . . . Repair Stations . | . . . Recycling Units . | . . . Scanalyzers . | . . . Garrison Access . | . . . Data Cores Recovered . | . . . Used . | . . . Hacking Detections 4 | . 4 . Full Trace Events 2 | . 2 . Feedback Events . | . . . Feedback Blocked . | . . . Robot Schematics Acquired . | . . . Robots Built . | . . . Authchips . | . . . Time . | . . . Total Robot Build Rating . | . . . Part Schematics Acquired . | . . . Parts Built . | . . . Authchips . | . . . Time . | . . . Total Part Build Rating . | . . . Parts Repaired . | . . . Time . | . . . Parts Recycled . | . . . Recycled Matter . | . . . Retrieved Matter . | . . . Retrieved Components . | . . . Parts Scanalyzed . | . . . Part Schematics Acquired . | . . . Parts Damaged . | . . . Bothacking | -11 -10 -10 ------------ Run | Yrd Mat Min Used RIF Installer . | . . . Robots Hacked . | . . . Non-combat . | . . . Combat . | . . . Robot Hacks Applied . | . . . Relay Couplers Released . | . . . Fabnet Peak Effective % . | . . . Robots Rewired . | . . . Allies Hacked . | . . . Hacks Repelled . | . . . Allies | -11 -10 -10 -------- Run | Yrd Mat Min Total Allies . | . . . Largest Group . | . . . Highest-Rated Group . | . . . Highest-Rated Ally . | . . . Total Orders . | . . . Ally Attacks . | . . . Total Damage . | . . . Kills . | . . . Allies Corrupted . | . . . Allies Melted . | . . . Intel | -11 -10 -10 ------- Run | Yrd Mat Min Robot Analysis Total 1 | . 1 . Derelict Logs Recovered . | . . . Drone Launches . | . . . Drone Recoveries . | . . . Exploration | -11 -10 -10 ------------- Run | Yrd Mat Min Turns Passed 699 | 112 492 95 Spaces Moved 345 | 49 223 73 Core 34 | 11 . 23 Treads 305 | 38 223 44 Legs 6 | . . 6 Wheels . | . . . Hover . | . . . Flight . | . . . Fastest Speed 50 | 50 160 50 Average Speed 151 | 154 160 122 Slowest Speed 200 | 200 160 160 Overloaded Moves . | . . . Propulsion Burnouts . | . . . Robots Hopped . | . . . Cave-ins Triggered . | . . . Exploration Rate (%) 19 | 4 40 15 Regions Visited 2 Branch Regions 1 Pre-discovered Areas . | . . . Known Exits Taken . | . . . Unknown Exits Taken 2 | 1 1 . Scrap Searched . | . . . Spaces Dug . | . . . Terrain Destroyed 1 | . 1 . Melee . | . . . Projectile . | . . . AOE 1 | . 1 . Terrain Rammed . | . . . Walls Destroyed . | . . . Machines Disabled . | . . . Actions | -11 -10 -10 --------- Run | Yrd Mat Min Total 430 | 67 282 81 Wait 4 | . 4 . Move 343 | 48 222 73 Hop . | . . . Pick Up 7 | 4 3 . Fast Attach 10 | 7 2 1 Attach 4 | . 2 2 Detach 4 | . 2 2 Swap 3 | 1 2 . Drop 5 | . 2 3 Fire 50 | 7 43 . Melee . | . . . Ram . | . . . Kick . | . . . Crush . | . . . Escape Stasis . | . . . Rewire . | . . . Trap . | . . . Miscellaneous . | . . . Route ------- -11/Scrapyard -10/Materials (discovered 2 exits: [*Min x2]) -10/Mines History --------- Turn | Location | Event 20 | -11/Scrapyard | Discovered new exit (range 15) 113 | -11/Scrapyard | Entered Materials 187 | -10/Materials | Discovered new exit (range 16) 306 | -10/Materials | Build established: Mutant 586 | -10/Materials | Discovered new exit (range 12) 605 | -10/Materials | Entered Mines 643 | -10/Mines | Assembled infested the area 683 | -10/Mines | Core integrity fell below 50% 686 | -10/Mines | Core integrity fell below 20% 700 | -10/Mines | Destroyed by D-53 Grenadier with Mini Grenade Launcher Last Messages --------------- Something is scanning the area. 00643_ ALERT: Infestation in the mines, dispatching Demolisher response squad. 00673_ C-30 ARC bursts open, deploying its payload. 00673_ D-53 Grenadier unfolds itself. 00678_ The unstable cave ceiling collapses. 00679_ Aluminum Leg destroyed. 00679_ Ion Engine destroyed. 00679_ Aluminum Leg destroyed. 00680_ Dropped Lgt. Treads. 00681_ The unstable cave ceiling collapses. 00681_ Particle Gun destroyed. 00681_ Acquired Lgt. Treads. 00686_ The unstable cave ceiling collapses. 00687_ Lgt. Treads destroyed. 00687_ R-06 Scavenger destroyed. 00689_ Dropped Med. Storage Unit. 00689_ Lgt. Assault Rifle destroyed. 00692_ The unstable cave ceiling collapses. Map ----- +----------------------------------------------------+ | ???????????????????????????????????????????????? | | ???????????????????????????????????????????????? | | ???????????????????????????????????????????????? | | ???????????????????????????????????????????????? | | ???????????????????????????????????????????????? | | ???????????????????????????????????????????????? | | ???????????????????????????????????????????????? | | ???????????????????????????????????????????????? | | ???????????????????????????????????????????????? | | ???????????????#??????????????#????????????????? | | ???????????#### ???????????? #????????????????? | | ??????????## ???????????? #????????????????? | | ???????#### ???#######? ##???????????????? | | ???????? #### # # ## ##??????????????? | | ????????? # # # ##?????????????? | | ??????????# # #?????????????? | | ??????????# %" #?????????????? | | ?????????## d ##???????????????????? | | ?????????# * # #???????????????????? | | ?????????# ! % ##???????????????????? | | ?????????# d ##????????????????????? | | ?????????# # ##????????????????????? | | ?????????## # #?????????????????????? | | ??????????# ### #?????????????????????? | | ??????????### # ##?# #?????????????????????? | | ????????????### ##??#@ #?????????????????????? | | ??????????????## #### #?????????????????????? | | ???????????????## # #?????????????????????? | | ????????????????## ####??????????????????? | | ?????????????????### ##?????????????????? | | ???????????????????## ##????????????????? | | ????????????????????##### #????????????????? | | ????????????????????????## #????????????????? | | ?????????????????????????# #????????????????? | | ?????????????????????????# #????????????????? | | ?????????????????????????## ######???????????? | | ?????????????????????????## ##??????????? | | ?????????????????????????# #??????????? | | ?????????????????????????# #??????????? | | ?????????????????????????# ##?????????? | | ?????????????????????????# """" #?????????? | | ?????????????????????????# """" #?????????? | | ?????????????????????????## """" ##?????????? | | ??????????????????????????## ##??????????? | | ???????????????????????????## ##???????????? | | ????????????????????????????## ##????????????? | | ?????????????????????????????#####?????????????? | | ???????????????????????????????????????????????? | | ???????????????????????????????????????????????? | | ???????????????????????????????????????????????? | +----------------------------------------------------+ Best States ------------- Heat Dissipation 25 Energy Generation 10 Energy Capacity 250 Matter Stores 300 Matter Capacity 300 Sight Range 16 Terrain Scan Density 10 Evasion (%) 50 Recoil Reduction 2 Offensive Hacking 10 Item Schematics ----------------- None Robot Schematics ------------------ None Fabricated ------------ Nothing Alien Tech Used ----------------- None Achievements -------------- None Challenges ------------ None Game ------ Seed NetworkBladeNanovents Manual? 0 Play Time 00:11:12 Cumulative 5.7 hours Start 2024.08.29 @ 10:45:12 End 2024.08.29 @ 10:55:37 Sessions 1 Manual Loads 0 Difficulty Rogue Special Mode None Game No. 5 Rogue 5 Adventurer 0 Explorer 0 Win Type - Total 0 Types 0/0/0/0/0/0/0/0/0 Lore% 7 Gallery% 8 Achievement% 10 Wizard Run 0 Options --------- Layout 1 ASCII 0 Keyboard 0 Movement Mouse Keybinds 0 Fullscreen 1 Font 24/X11 Map View 50x35 Zoom Use 0% Tactical HUD 1 Map Filters NONE Filters NONE Steam 1 RUN: 4bae5697-5f78-4ad6-b957-98b813603424